fUST/lending_fUST_20240110
["ID","MTS","AMOUNT","RATE_DAILY","PERIOD"]
[311079046,1704899441847,-201.58712271,0.00028492,4]
[311079047,1704899441856,-500.0,0.00028492,4]
[311079048,1704899441865,-445.55507305,0.00028492,4]
[311079049,1704899441874,-621.17103778,0.00028492,4]
[311079050,1704899441883,-317.97566668,0.00028492,4]
[311079051,1704899441894,-500.0,0.00028493,2]
[311079052,1704899441903,-500.0,0.00028493,2]
[311079053,1704899441912,-500.0,0.00028493,2]
[311079054,1704899441921,-500.0,0.00028493,2]
[311079055,1704899441929,-500.0,0.00028493,2]
[311079056,1704899441938,-500.0,0.00028493,2]
[311079057,1704899441947,-588.30678419,0.00028493,2]
[311079058,1704899441957,-591.96,0.00028493,2]
[311079059,1704899441966,-500.0,0.00028493,2]
[311079060,1704899441977,-500.0,0.00028493,2]
[311079061,1704899441987,-632.4,0.00028493,2]
[311079062,1704899441996,-500.0,0.00028493,2]
[311079063,1704899442006,-800.48,0.00028493,2]
[311079064,1704899442015,-500.0,0.00028493,2]
[311079065,1704899442029,-500.0,0.00028493,2]
[311079066,1704899442041,-500.0,0.00028493,2]
[311079067,1704899442054,-500.0,0.00028493,2]
[311079068,1704899442066,-7519.82,0.00028493,2]
[311079069,1704899442078,-500.0,0.00028493,2]
[311079070,1704899442089,-1024.87,0.00028493,2]
[311079071,1704899442099,-500.0,0.00028493,2]
[311079072,1704899442110,-500.0,0.00028493,2]
[311079073,1704899442120,-3307.13,0.00028493,2]
[311079074,1704899442133,-500.0,0.00028493,2]
[311079075,1704899442144,-500.0,0.00028493,2]
[311079076,1704899442155,-500.0,0.00028493,2]
[311079077,1704899442167,-983.07,0.00028493,2]
[311079078,1704899442179,-218.75640608,0.00028493,2]
[311079079,1704899442190,-500.0,0.00028493,2]
[311079080,1704899442203,-1729.16,0.00028493,2]
[311079081,1704899442214,-813.55,0.00028493,2]
[311079082,1704899442225,-500.0,0.00028493,2]
[311079083,1704899442236,-500.0,0.00028493,2]
[311079084,1704899442248,-2065.95,0.00028512,2]
[311079085,1704899442258,-1110.57,0.00028512,2]
[311079086,1704899442269,-1351.61,0.00028512,2]
[311079087,1704899442282,-500.0,0.00028512,2]
[311079088,1704899442295,-500.0,0.00028512,2]
[311079089,1704899442306,-500.0,0.00028512,2]
[311079090,1704899442317,-310.14,0.00028512,2]
[311079091,1704899442328,-500.0,0.00028512,2]
[311079092,1704899442340,-310.18130084,0.0002865,2]
[311079093,1704899442351,-255.07031327,0.00028767,2]
[311079094,1704899442363,-500.0,0.00028767,2]
[311079095,1704899442374,-500.0,0.00028767,2]
[311079096,1704899442387,-182.14359521,0.00028767,2]
[311079097,1704899442399,-500.0,0.00028767,2]
[311079098,1704899442411,-155.0,0.00028767,2]
[311079101,1704899442423,-500.0,0.00028767,2]
[311079103,1704899442434,-180.93,0.00028767,2]
[311079105,1704899442444,-500.0,0.00028767,2]
[311079106,1704899442456,-500.0,0.00028767,2]
[311079107,1704899442466,-800.48,0.00028767,2]
[311079108,1704899442478,-323.9437477,0.00028767,2]
[311079110,1704899442491,-500.0,0.00028767,2]
[311079111,1704899442502,-500.0,0.00028767,2]
[311079112,1704899442513,-7519.82,0.00028767,2]
[311079113,1704899442526,-500.0,0.00028767,2]
[311079114,1704899442537,-1024.87,0.00028767,2]
[311079115,1704899442550,-500.0,0.00028767,2]
[311079116,1704899442562,-500.0,0.00028767,2]
[311079117,1704899442572,-3307.13,0.00028767,2]
[311079118,1704899442584,-500.0,0.00028767,2]
[311079120,1704899442595,-500.0,0.00028767,2]
[311079122,1704899442606,-500.0,0.00028767,2]
[311079125,1704899442619,-983.07,0.00028767,2]
[311079126,1704899442632,-500.0,0.00028767,2]
[311079127,1704899442645,-1729.16,0.00028767,2]
[311079130,1704899442660,-813.55,0.00028767,2]
[311079133,1704899442678,-500.0,0.00028767,2]
[311079136,1704899442690,-500.0,0.00028767,2]
[311079139,1704899442700,-2065.95,0.00028786,2]
[311079141,1704899442711,-1110.57,0.00028786,2]
[311079144,1704899442722,-1351.61,0.00028786,2]
[311079146,1704899442732,-500.0,0.00028786,2]
[311079147,1704899442742,-500.0,0.00028786,2]
[311079148,1704899442753,-500.0,0.00028786,2]
[311079149,1704899442765,-500.0,0.00028786,2]
[311079151,1704899442778,-5999.99,0.00029,2]
[311079153,1704899442788,-830.93075616,0.00029,2]
[311079155,1704899442798,-438.99,0.00029,2]
[311079156,1704899442808,-6000.0,0.00029,2]
[311079157,1704899442818,-38363.65059237,0.0002904,2]
[311079158,1704899442829,-346.0635217,0.00029041,2]
[311079159,1704899442840,-500.0,0.00029041,2]
[311079160,1704899442850,-500.0,0.00029041,2]
[311079161,1704899442862,-500.0,0.00029041,2]
[311079162,1704899442873,-500.0,0.00029041,2]
[311079163,1704899442884,-800.48,0.00029041,2]
[311079164,1704899442895,-500.0,0.00029041,2]
[311079165,1704899442907,-500.0,0.00029041,2]
[311079166,1704899442917,-7519.82,0.00029041,2]
[311079167,1704899442927,-500.0,0.00029041,2]
[311079168,1704899442938,-1024.87,0.00029041,2]
[311079169,1704899442949,-500.0,0.00029041,2]
[311079170,1704899442959,-500.0,0.00029041,2]
[311079171,1704899442970,-3307.13,0.00029041,2]
[311079172,1704899442982,-500.0,0.00029041,2]
[311079173,1704899442993,-500.0,0.00029041,2]
[311079174,1704899443004,-481.12873839,0.00029041,2]
[311079175,1704899443018,-983.07,0.00029041,2]
[311079176,1704899443038,-500.0,0.00029041,2]
[311079177,1704899443048,-1729.16,0.00029041,2]
[311079178,1704899443058,-813.55,0.00029041,2]
[311079179,1704899443070,-500.0,0.00029041,2]
[311079180,1704899443081,-500.0,0.00029041,2]
[311079181,1704899443092,-2065.95,0.0002906,2]
[311079182,1704899443103,-1110.57,0.0002906,2]
[311079183,1704899443114,-1351.61,0.0002906,2]
[311079184,1704899443125,-500.0,0.0002906,2]
[311079185,1704899443135,-500.0,0.0002906,2]
[311079186,1704899443146,-500.0,0.0002906,2]
[311079187,1704899443156,-500.0,0.0002906,2]
[311079188,1704899443166,-5335.17,0.0002914,2]
[311079189,1704899443177,-694.38017091,0.00029248,2]
[311079190,1704899443187,-310.18130084,0.00029275,2]
[311079191,1704899443197,-500.0,0.00029315,2]
[311079192,1704899443207,-500.0,0.00029315,2]
[311079193,1704899443218,-500.0,0.00029315,2]
[311079194,1704899443229,-578.7796484,0.00029315,2]
[311079195,1704899443239,-800.48,0.00029315,2]
[311079196,1704899443250,-500.0,0.00029315,2]
[311079197,1704899443261,-500.0,0.00029315,2]
[311079198,1704899443272,-7519.82,0.00029315,2]
[311079199,1704899443286,-500.0,0.00029315,2]
[311079200,1704899443296,-1024.87,0.00029315,2]
[311079201,1704899443307,-500.0,0.00029315,2]
[311079202,1704899443318,-500.0,0.00029315,2]
[311079203,1704899443329,-3307.13,0.00029315,2]
[311079204,1704899443340,-500.0,0.00029315,2]
[311079205,1704899443350,-500.0,0.00029315,2]
[311079206,1704899443360,-983.07,0.00029315,2]
[311079207,1704899443371,-500.0,0.00029315,2]
[311079208,1704899443381,-1729.16,0.00029315,2]
[311079209,1704899443392,-813.55,0.00029315,2]
[311079210,1704899443402,-500.0,0.00029315,2]
[311079211,1704899443414,-500.0,0.00029315,2]
[311079212,1704899443424,-2065.95,0.00029334,2]
[311079213,1704899443435,-1110.57,0.00029334,2]
[311079214,1704899443445,-1351.61,0.00029334,2]
[311079215,1704899443458,-500.0,0.00029334,2]
[311079216,1704899443469,-500.0,0.00029334,2]
[311079217,1704899443608,-500.0,0.00029334,2]
[311079218,1704899443623,-500.0,0.00029334,2]
[311079219,1704899443633,-500.0,0.00029589,2]
[311079220,1704899443642,-500.0,0.00029589,2]
[311079221,1704899443651,-500.0,0.00029589,2]
[311079222,1704899443661,-800.48,0.00029589,2]
[311079223,1704899443671,-500.0,0.00029589,2]
[311079224,1704899443680,-500.0,0.00029589,2]
[311079225,1704899443689,-7519.82,0.00029589,2]
[311079226,1704899443698,-500.0,0.00029589,2]
[311079227,1704899443707,-1024.87,0.00029589,2]
[311079228,1704899443716,-500.0,0.00029589,2]
[311079229,1704899443725,-500.0,0.00029589,2]
[311079230,1704899443734,-3307.13,0.00029589,2]
[311079231,1704899443744,-500.0,0.00029589,2]
[311079232,1704899443753,-281.66,0.00029589,2]
[311079233,1704899443762,-983.07,0.00029589,2]
[311079234,1704899443772,-608.2,0.00029589,2]
[311079235,1704899443783,-1729.16,0.00029589,2]
[311079236,1704899443792,-813.55,0.00029589,2]
[311079237,1704899443802,-500.0,0.00029589,2]
[311079238,1704899443811,-300.0,0.000296,14]
[311079239,1704899443821,-2065.95,0.00029608,2]
[311079240,1704899443830,-305.88031617,0.00029608,2]
[311079241,1704899443849,-804.68968383,0.00029608,2]
[311079242,1704899443858,-1351.61,0.00029608,2]
[311079243,1704899443867,-500.0,0.00029608,2]
[311079244,1704899443876,-500.0,0.00029608,2]
[311079245,1704899443886,-500.0,0.00029608,2]
[311079246,1704899443896,-500.0,0.00029608,2]
[311079247,1704899443905,-787.43,0.00029789,2]
[311079248,1704899443914,-787.43,0.00029789,2]
[311079249,1704899443923,-787.43,0.00029789,2]
[311079250,1704899443933,-787.43,0.00029789,2]
[311079251,1704899443942,-787.43,0.00029789,2]
[311079252,1704899443951,-787.43,0.00029789,2]
[311079253,1704899443960,-787.43,0.00029789,2]
[311079254,1704899443969,-787.43,0.00029789,2]
[311079255,1704899443979,-787.43,0.00029789,2]
[311079256,1704899443988,-787.43,0.00029789,2]
[311079257,1704899443998,-229434.7142307,0.0002979,7]
[311079258,1704899444007,-500.0,0.00029863,2]
[311079259,1704899444016,-500.0,0.00029863,2]
[311079260,1704899444027,-500.0,0.00029863,2]
[311079261,1704899444036,-800.48,0.00029863,2]
[311079262,1704899444045,-500.0,0.00029863,2]
[311079263,1704899444054,-500.0,0.00029863,2]
[311079264,1704899444063,-7519.82,0.00029863,2]
[311079265,1704899444073,-638.91006486,0.00029863,2]
[311079266,1704899444082,-1024.87,0.00029863,2]
[311079267,1704899444091,-617.82317733,0.00029863,2]
[311079268,1704899444100,-500.0,0.00029863,2]
[311079269,1704899444109,-3307.13,0.00029863,2]
[311079270,1704899444118,-500.0,0.00029863,2]
[311079271,1704899444128,-983.07,0.00029863,2]
[311079272,1704899444137,-1729.16,0.00029863,2]
[311079273,1704899444146,-813.55,0.00029863,2]
[311079274,1704899444154,-553.73752008,0.00029863,2]
[311079275,1704899444164,-623.53486442,0.00029871,2]
[311079276,1704899444173,-2065.95,0.00029882,2]
[311079277,1704899444182,-1110.57,0.00029882,2]
[311079278,1704899444191,-1351.61,0.00029882,2]
[311079279,1704899444201,-500.0,0.00029882,2]
[311079280,1704899444211,-500.0,0.00029882,2]
[311079281,1704899444220,-500.0,0.00029882,2]
[311079282,1704899444229,-500.0,0.00029882,2]
[311079283,1704899444238,-310.18130084,0.000299,2]
[311079284,1704899444248,-5333.46335116,0.00029954,2]
[311079285,1704899444257,-236.52252731,0.0003,7]
[311079286,1704899444266,-639.65046808,0.0003,4]
[311079287,1704899444277,-15040.0244209,0.0003,4]
[311079288,1704899444286,-463.38099934,0.0003,4]
[311079289,1704899444295,-6973.85683356,0.0003,4]
[311079290,1704899444304,-399.65900583,0.0003,4]
[311079291,1704899444315,-243.77594457,0.0003,4]
[311079292,1704899444324,-154.8915759,0.0003,2]
[311079293,1704899444334,-2754.83813333,0.0003,2]
[311079294,1704899444343,-2188.52939093,0.0003,2]
[311079295,1704899444353,-32780.12501289,0.0003,10]
[311079296,1704899444362,-1475.70472705,0.0003,12]
[311079297,1704899444371,-18548.99519009,0.0003,2]
[311079298,1704899444381,-698.81535711,0.0003,2]
[311079299,1704899444390,-686.6335406,0.0003,4]
[311079300,1704899444399,-269.0,0.0003,2]
[311079301,1704899444409,-197.35265213,0.0003013,2]
[311079302,1704899444419,-500.0,0.00030136,2]
[311079303,1704899444428,-500.0,0.00030136,2]
[311079304,1704899444437,-381.00525571,0.00030136,2]
[311079305,1704899444446,-800.48,0.00030136,2]
[311079306,1704899444455,-500.0,0.00030136,2]
[311079307,1704899444465,-500.0,0.00030136,2]
[311079308,1704899444474,-150.0,0.00030136,2]
[311079309,1704899444483,-7519.82,0.00030136,2]
[311079310,1704899444492,-1024.87,0.00030136,2]
[311079311,1704899444501,-500.0,0.00030136,2]
[311079312,1704899444511,-3307.13,0.00030136,2]
[311079313,1704899444520,-500.0,0.00030136,2]
[311079314,1704899444530,-983.07,0.00030136,2]
[311079315,1704899444542,-1729.16,0.00030136,2]
[311079316,1704899444551,-813.55,0.00030136,2]
[311079317,1704899444561,-5000.0,0.00030137,2]
[311079318,1704899444570,-3180.8731799,0.00030137,2]
[311079319,1704899444579,-999.30048966,0.00030148,2]
[311079320,1704899444589,-2065.95,0.00030156,2]
[311079321,1704899444598,-1110.57,0.00030156,2]
[311079322,1704899444608,-1351.61,0.00030156,2]
[311079323,1704899444617,-500.0,0.00030156,2]
[311079324,1704899444626,-500.0,0.00030156,2]
[311079325,1704899444635,-500.0,0.00030156,2]
[311079326,1704899444645,-209.64,0.00030156,2]
[311079327,1704899444654,-571.18,0.0003041,2]
[311079328,1704899444663,-500.0,0.0003041,2]
[311079329,1704899444672,-800.48,0.0003041,2]
[311079330,1704899444682,-500.0,0.0003041,2]
[311079331,1704899444691,-500.0,0.0003041,2]
[311079332,1704899444701,-7519.82,0.0003041,2]
[311079333,1704899444711,-1024.87,0.0003041,2]
[311079334,1704899444720,-500.0,0.0003041,2]
[311079335,1704899444730,-3307.13,0.0003041,2]
[311079336,1704899444740,-500.0,0.0003041,2]
[311079337,1704899444749,-983.07,0.0003041,2]
[311079338,1704899444758,-1729.16,0.0003041,2]
[311079339,1704899444767,-813.55,0.0003041,2]
[311079340,1704899444779,-2065.95,0.0003043,2]
[311079341,1704899444789,-1110.57,0.0003043,2]
[311079342,1704899444798,-1351.61,0.0003043,2]
[311079343,1704899444808,-500.0,0.0003043,2]
[311079344,1704899444818,-500.0,0.0003043,2]
[311079345,1704899444827,-500.0,0.0003043,2]
[311079346,1704899444837,-317.99,0.00030684,2]
[311079347,1704899444847,-800.48,0.00030684,2]
[311079348,1704899444857,-500.0,0.00030684,2]
[311079349,1704899444867,-500.0,0.00030684,2]
[311079350,1704899444877,-7519.82,0.00030684,2]
[311079351,1704899444887,-1024.87,0.00030684,2]
[311079352,1704899444898,-500.0,0.00030684,2]
[311079353,1704899444908,-3307.13,0.00030684,2]
[311079354,1704899444918,-461.75,0.00030684,2]
[311079355,1704899444928,-983.07,0.00030684,2]
[311079356,1704899444937,-1729.16,0.00030684,2]
[311079357,1704899444948,-813.55,0.00030684,2]
[311079358,1704899444957,-2065.95,0.00030704,2]
[311079359,1704899444967,-1110.57,0.00030704,2]
[311079360,1704899444976,-1351.61,0.00030704,2]
[311079361,1704899444985,-500.0,0.00030704,2]
[311079362,1704899444995,-500.0,0.00030704,2]
[311079363,1704899445005,-500.0,0.00030704,2]
[311079364,1704899445015,-12224.0968102,0.00030712,5]
[311079365,1704899445024,-150.89437394,0.00030768,30]
[311079366,1704899445035,-6115.24435478,0.00030887,2]
[311079367,1704899445044,-1547.04588369,0.00030887,2]
[311079368,1704899445053,-835.16528178,0.00030887,2]
[311079369,1704899445062,-800.48,0.00030958,2]
[311079370,1704899445071,-500.0,0.00030958,2]
[311079371,1704899445081,-500.0,0.00030958,2]
[311079372,1704899445090,-7519.82,0.00030958,2]
[311079373,1704899445099,-1024.87,0.00030958,2]
[311079374,1704899445108,-325.87,0.00030958,2]
[311079375,1704899445118,-3307.13,0.00030958,2]
[311079376,1704899445127,-983.07,0.00030958,2]
[311079377,1704899445136,-1729.16,0.00030958,2]
[311079378,1704899445145,-813.55,0.00030958,2]
[311079379,1704899445158,-2065.95,0.00030978,2]
[311079380,1704899445166,-1110.57,0.00030978,2]
[311079381,1704899445176,-1351.61,0.00030978,2]
[311079382,1704899445185,-500.0,0.00030978,2]
[311079383,1704899445194,-500.0,0.00030978,2]
[311079384,1704899445204,-500.0,0.00030978,2]
[311079385,1704899445213,-20585.91157609,0.00031,4]
[311079386,1704899445222,-373.66045,0.000311,15]
[311079387,1704899445232,-800.48,0.00031232,2]
[311079388,1704899445241,-500.0,0.00031232,2]
[311079389,1704899445251,-500.0,0.00031232,2]
[311079390,1704899445261,-7519.82,0.00031232,2]
[311079391,1704899445271,-1024.87,0.00031232,2]
[311079392,1704899445282,-3307.13,0.00031232,2]
[311079393,1704899445292,-983.07,0.00031232,2]
[311079394,1704899445302,-1729.16,0.00031232,2]
[311079395,1704899445312,-813.55,0.00031232,2]
[311079396,1704899445321,-2065.95,0.00031252,2]
[311079397,1704899445330,-1110.57,0.00031252,2]
[311079398,1704899445339,-1351.61,0.00031252,2]
[311079399,1704899445349,-500.0,0.00031252,2]
[311079400,1704899445358,-173.0877541,0.00031252,2]
[311079401,1704899445368,-500.0,0.00031252,2]
[311079402,1704899445377,-620.17674322,0.00031365,2]
[311079403,1704899445387,-150.89437394,0.00031395,7]
[311079404,1704899445396,-800.48,0.00031506,2]
[311079405,1704899445405,-500.0,0.00031506,2]
[311079406,1704899445414,-500.0,0.00031506,2]
[311079407,1704899445423,-7519.82,0.00031506,2]
[311079408,1704899445432,-1024.87,0.00031506,2]
[311079409,1704899445442,-3307.13,0.00031506,2]
[311079410,1704899445452,-983.07,0.00031506,2]
[311079411,1704899445461,-1729.16,0.00031506,2]
[311079412,1704899445470,-813.55,0.00031506,2]
[311079414,1704899445479,-2065.95,0.00031526,2]
[311079416,1704899445489,-1110.57,0.00031526,2]
[311079417,1704899445498,-1351.61,0.00031526,2]
[311079419,1704899445508,-500.0,0.00031526,2]
[311079421,1704899445517,-500.0,0.00031526,2]
[311079423,1704899445529,-641.73821457,0.0003178,4]
[311079425,1704899445538,-800.48,0.0003178,2]
[311079427,1704899445547,-500.0,0.0003178,2]
[311079429,1704899445557,-500.0,0.0003178,2]
[311079431,1704899445566,-7519.82,0.0003178,2]
[311079433,1704899445574,-1024.87,0.0003178,2]
[311079434,1704899445584,-3307.13,0.0003178,2]
[311079435,1704899445593,-983.07,0.0003178,2]
[311079436,1704899445602,-1729.16,0.0003178,2]
[311079438,1704899445611,-813.55,0.0003178,2]
[311079440,1704899445620,-2065.95,0.00031799,2]
[311079442,1704899445629,-1110.57,0.00031799,2]
[311079443,1704899445638,-1351.61,0.00031799,2]
[311079445,1704899445647,-500.0,0.00031799,2]
[311079448,1704899445657,-500.0,0.00031799,2]
[311079449,1704899445666,-12429.70172272,0.000318,2]
[311079451,1704899445674,-3476.43711676,0.00031848,4]
[311079453,1704899445683,-881.94009009,0.00031897,2]
[311079455,1704899445693,-153.0,0.00031924,2]
[311079457,1704899445702,-195.96261347,0.00031999,2]
[311079466,1704899445772,-302041.03738653,0.00031999,2]
[311079467,1704899445783,-11000.0,0.00032,5]
[311079470,1704899445793,-2134.03260025,0.00032,4]
[311079472,1704899445802,-3342.64274471,0.00032,10]
[311079474,1704899445811,-41678.07202376,0.00032,15]
[311079475,1704899445820,-150.89437394,0.00032036,4]
[311079477,1704899445828,-800.48,0.00032054,2]
[311079479,1704899445842,-500.0,0.00032054,2]
[311079481,1704899445850,-500.0,0.00032054,2]
[311079483,1704899445859,-4166.64385454,0.00032054,2]
[311079486,1704899445871,-269.271,0.00032054,2]
[311079489,1704899446010,-500.0,0.00027397,2]
[311079490,1704899446020,-500.0,0.00027671,2]
[311079491,1704899446032,-500.0,0.00027945,2]
[311079492,1704899446042,-500.0,0.00028219,2]
[311079493,1704899446051,-500.0,0.00028493,2]
[311079494,1704899446060,-500.0,0.00028767,2]
[311079495,1704899446070,-500.0,0.00029041,2]
[311079496,1704899446079,-1528.19075044,0.00032054,2]
[311079497,1704899446091,-1555.71439502,0.00032054,2]
[311079498,1704899446100,-1024.87,0.00032054,2]
[311079499,1704899446109,-2813.10395393,0.00032054,2]
[311079500,1704899446181,-5999.99,0.00029,2]
[311079501,1704899446190,-161.61484568,0.00029315,2]
[311079502,1704899446240,-500.0,0.00027397,2]
[311079503,1704899446250,-338.38515432,0.00029315,2]
[311079504,1704899446259,-500.0,0.00029589,2]
[311079505,1704899446269,-500.0,0.00029863,2]
[311079506,1704899446279,-321.57,0.00030136,2]
[311079507,1704899446289,-494.02604607,0.00032054,2]
[311079508,1704899446299,-983.07,0.00032054,2]
[311079509,1704899446403,-1729.16,0.00032054,2]
[311079510,1704899446415,-813.55,0.00032054,2]
[311079511,1704899446424,-2065.95,0.00032073,2]
[311079512,1704899446434,-1110.57,0.00032073,2]
[311079513,1704899446443,-1351.61,0.00032073,2]
[311079514,1704899446453,-500.0,0.00032073,2]
[311079515,1704899446462,-500.0,0.00032073,2]
[311079516,1704899446471,-153.0,0.00032192,2]
[311079517,1704899446480,-153.0,0.00032192,2]
[311079518,1704899446489,-1025.68574779,0.00032328,2]
[311079519,1704899446498,-4451.60098697,0.00032328,4]
[311079520,1704899446508,-154.8915759,0.00032328,2]
[311079521,1704899446518,-409.80803054,0.00032328,2]
[311079522,1704899446530,-500.0,0.00032328,2]
[311079523,1704899446539,-7519.82,0.00032328,2]
[311079524,1704899446547,-1024.87,0.00032328,2]
[311079525,1704899446556,-3307.13,0.00032328,2]
[311079526,1704899446565,-983.07,0.00032328,2]
[311079527,1704899446573,-1729.16,0.00032328,2]
[311079528,1704899446582,-813.55,0.00032328,2]
[311079529,1704899446591,-231.8928,0.00032334,2]
[311079530,1704899446600,-2065.95,0.00032347,2]
[311079531,1704899446610,-1110.57,0.00032347,2]
[311079532,1704899446620,-1351.61,0.00032347,2]
[311079533,1704899446629,-500.0,0.00032347,2]
[311079534,1704899446639,-500.0,0.00032347,2]
[311079535,1704899446648,-5000.03,0.00032364,2]
[311079536,1704899446660,-5000.03,0.00032364,2]
[311079537,1704899446669,-4999.99,0.00032365,2]
[311079538,1704899446679,-4999.99,0.00032366,2]
[311079539,1704899446688,-5000.02,0.00032366,2]
[311079540,1704899446696,-3503.4473762,0.00032367,2]
[311079541,1704899446709,-395.22199998,0.00032367,2]
[311083059,1704900179639,342.27313582,0.0003,120]
[311083061,1704900253603,150.87929656,0.00029888,30]
[311083073,1704900570241,-10500.0358078,0.00022315,2]
[311083074,1704900570267,-154.8915759,0.00022316,4]
[311083075,1704900570291,-7943.71182072,0.00022316,2]
[311083076,1704900570315,-19828.39990193,0.00022317,2]
[311083077,1704900570337,-2927.32783457,0.00022318,2]
[311083078,1704900570363,-192.86828256,0.00022321,2]
[311083079,1704900570387,-192.86828256,0.00022321,2]
[311083080,1704900570409,-192.86828256,0.00022321,2]
[311083081,1704900570431,-192.86828256,0.00022321,2]
[311083082,1704900570455,-192.86828256,0.00022321,2]
[311083083,1704900570479,-192.86828256,0.00022321,2]
[311083084,1704900570503,-167.600317,0.00022323,2]
[311083085,1704900570527,-241.487898,0.00022407,2]
[311083086,1704900570550,-213.6448584,0.00022685,2]
[311083087,1704900570573,-3935.83596684,0.000235,2]
[311083088,1704900570596,-150.0,0.000236,2]
[311083089,1704900570619,-200.0,0.00023639,2]
[311083090,1704900570642,-300.0,0.00023639,2]
[311083091,1704900570667,-16425.9053024,0.00023688,2]
[311083092,1704900570695,-2293.16748545,0.00024,2]
[311083093,1704900570718,-166.666666,0.0002407,2]
[311083094,1704900570741,-201.391144,0.00024496,2]
[311083095,1704900570768,-976.0012481,0.00024656,2]
[311083096,1704900570792,-166.666666,0.00024727,2]
[311083097,1704900570816,-4711.08145103,0.00025,2]
[311083098,1704900570840,-166.666666,0.00025383,2]
[311083099,1704900570863,-525.91402641,0.00026038,2]
[311083100,1704900570885,-166.666666,0.00026039,2]
[311083101,1704900571072,-166.666666,0.00026695,2]
[311083102,1704900571096,-3476.43711676,0.00027011,2]
[311083103,1704900571116,-166.666666,0.00027352,2]
[311083104,1704900571137,-2813.06,0.00027386,3]
[311083105,1704900571158,-155.12704871,0.00027395,2]
[311083106,1704900571178,-177.93668486,0.00027395,2]
[311083107,1704900571202,-947.43868379,0.00027395,2]
[311083108,1704900571221,-3000.0,0.00027396,2]
[311083109,1704900571242,-500.0,0.00027397,2]
[311083110,1704900571263,-500.0,0.00027397,2]
[311083111,1704900571283,-524.89574781,0.00027397,2]
[311083112,1704900571303,-500.0,0.00027397,2]
[311083113,1704900571323,-500.0,0.00027397,2]
[311083114,1704900571344,-500.0,0.00027397,2]
[311083115,1704900571365,-500.0,0.00027397,2]
[311083116,1704900571387,-500.0,0.00027397,2]
[311083117,1704900571407,-501.33305653,0.00027397,2]
[311083118,1704900571427,-500.0,0.00027397,2]
[311083119,1704900571449,-500.0,0.00027397,2]
[311083120,1704900571469,-503.05323719,0.00027397,2]
[311083121,1704900571489,-500.0,0.00027397,2]
[311083122,1704900571509,-500.0,0.00027397,2]
[311083123,1704900571530,-513.25278218,0.00027397,2]
[311083124,1704900571550,-500.0,0.00027397,2]
[311083125,1704900571570,-500.0,0.00027397,2]
[311083126,1704900571591,-188.56233448,0.00027397,2]
[311083127,1704900571611,-500.0,0.00027397,2]
[311083128,1704900571632,-161.74440105,0.00027397,2]
[311083129,1704900571653,-500.0,0.00027397,2]
[311083130,1704900571675,-500.0,0.00027397,2]
[311083131,1704900571700,-500.0,0.00027397,2]
[311083132,1704900571721,-500.0,0.00027397,2]
[311083133,1704900571742,-500.0,0.00027397,2]
[311083134,1704900571763,-500.0,0.00027397,2]
[311083135,1704900571784,-508.95269542,0.00027397,2]
[311083136,1704900571804,-500.0,0.00027397,2]
[311083137,1704900571825,-500.0,0.00027397,2]
[311083138,1704900571846,-500.0,0.00027397,2]